Workbook

Sheet Conduction
C2: NIST values
C3: Alu 3003 | D3: Alu 5083 | E3: 304 L | F3: G 10 normal | G3: G 10 warp | H3: PTFE
B4: a | C4: 0.63736 | D4: -0.90933 | E4: -1.4087 | F4: -4.1236 | G4: -2.64827 | H4: 2.738
B5: b | C5: -1.1437 | D5: 5.751 | E5: 1.3982 | F5: 13.788 | G5: 8.80228 | H5: -30.677
B6: c | C6: 7.4624 | D6: -11.112 | E6: 0.2543 | F6: -26.068 | G6: -24.8998 | H6: 89.43
B7: d | C7: -12.6905 | D7: 13.612 | E7: -0.626 | F7: 26.272 | G7: 41.1625 | H7: -136.99
B8: e | C8: 11.9165 | D8: -9.3977 | E8: 0.2334 | F8: -14.663 | G8: -39.8754 | H8: 124.69
B9: f | C9: -6.18721 | D9: 3.6873 | E9: 0.4256 | F9: 4.4954 | G9: 23.1778 | H9: -69.556
B10: g | C10: 1.63939 | D10: -0.77295 | E10: -0.4658 | F10: -0.6905 | G10: -7.95635 | H10: 23.32
B11: h | C11: -0.172667 | D11: 0.067336 | E11: 0.165 | F11: 0.0397 | G11: 1.48806 | H11: -4.3135
B12: i | C12: 0 | D12: 0 | E12: -0.0199 | F12: 0 | G12: -0.11701 | H12: 0.33829
B13: % error relative to data | C13: 0.02 | D13: 0.01 | E13: 0.02 | F13: 0.05 | G13: 0.05 | H13: ?
B14: Validity | C14: 4-300K | D14: 4-300K | E14: 4-300K | F14: 10-300K | G14: 12-300K | H14: 4-300K
C16: Thermal conductivity [W/(m.K)]
B17: Temperature [K] | C17: =C3 -> Alu 3003 | D17: =D3 -> Alu 5083 | E17: =E3 -> 304 L | F17: G 10 normal | G17: =G3 -> G 10 warp | H17: =H3 -> PTFE
B18: 4 | C18: =lambda("alu3003",$B18) -> 10.80531132 | D18: =lambda("alu5083",$B18) -> 3.295380774 | E18: =lambda("304L",$B18) -> 0.272396189 | F18: =lambda("Epox_norm",$B18) -> 0.07232285572 | G18: =lambda("Epox_trans",$B18) -> 0.07321998891 | H18: =lambda("PTFE",$B18) -> 0.04599485452
B19: 10 | C19: =lambda("alu3003",B19) -> 28.94496308 | D19: =lambda("alu5083",$B19) -> 8.426670258 | E19: =lambda("304L",$B19) -> 0.9038575707 | F19: =lambda("Epox_norm",$B19) -> 0.1122018454 | G19: =lambda("Epox_trans",$B19) -> 0.1360849193 | H19: =lambda("PTFE",$B19) -> 0.09545309178
B20: 20 | C20: 59.37148904 | D20: 17.21229475 | E20: 2.168622406 | F20: 0.1564218697 | G20: 0.1981725739 | H20: 0.14217365
B21: =B20+10 -> 30 | C21: 85.21365827 | D21: 25.42986843 | E21: 3.468572587 | F21: 0.1911115974 | G21: 0.2392809164 | H21: 0.1738265754
B22: 40 | C22: 104.707913 | D22: 32.88862558 | E22: 4.670281 | F22: 0.2174595053 | G22: 0.2740154518 | H22: 0.1952770909
B23: 50 | C23: 118.6949706 | D23: 39.66304975 | E23: 5.730166936 | F23: 0.2381636389 | G23: 0.3061146549 | H23: 0.2099221533
B24: 60 | C24: 128.5732628 | D24: 45.85432776 | E24: 6.646641427 | F24: 0.2553101087 | G24: 0.3366444331 | H24: 0.2202899861
B25: 70 | C25: 135.5799059 | D25: 51.54876507 | E25: 7.434751536 | F25: 0.2702846054 | G25: 0.3659534474 | H25: 0.228011897
B26: 80 | C26: 140.645866 | D26: 56.8145777 | E26: 8.114319471 | F26: 0.2839773686 | G26: 0.3941832682 | H26: 0.2340789438
B27: 90 | C27: 144.4278076 | D27: 61.70539924 | E27: 8.704844967 | F27: 0.2969592956 | G27: 0.4214168875 | H27: 0.2390785106
B28: 100 | C28: 147.3750617 | D28: 66.26405365 | E28: 9.223590217 | F28: 0.3095993213 | G28: 0.4477236133 | H28: 0.2433548466
B29: 110 | C29: 149.7900357 | D29: 70.52547741 | E29: 9.685093439 | F29: 0.3221380904 | G29: 0.4731714951 | H29: 0.2471083748
B30: 120 | C30: 151.8738034 | D30: 74.51880941 | E30: 10.10128078 | F30: 0.3347336846 | G30: 0.4978293116 | H30: 0.250455252
B31: 130 | C31: 153.7582756 | D31: 78.26885478 | E31: 10.48179376 | F31: 0.3474901771 | G31: 0.5217654623 | H31: 0.2534628071
B32: 140 | C32: 155.5282659 | D32: 81.79711056 | E32: 10.83436242 | F32: 0.3604756896 | G32: 0.5450462665 | H32: 0.256170634
B33: 150 | C33: 157.236462 | D33: 85.12249119 | E33: 11.16515436 | F33: 0.3737339843 | G33: 0.5677344782 | H33: 0.2586031631
B34: 160 | C34: 158.913561 | D34: 88.26184876 | E34: 11.4790756 | F34: 0.3872920229 | G34: 0.5898882137 | H34: 0.2607771384
B35: 170 | C35: 160.5751518 | D35: 91.23035249 | E35: 11.78001966 | F35: 0.4011649729 | G35: 0.6115602807 | H35: 0.2627060186
B36: 180 | C36: 162.226416 | D36: 94.04177032 | E36: 12.07106923 | F36: 0.4153595721 | G36: 0.6327978329 | H36: 0.2644025046
B37: 190 | C37: 163.8653647 | D37: 96.708682 | E37: 12.35465738 | F37: 0.4298764245 | G37: 0.653642268 | H37: 0.2658799197
B38: 200 | C38: 165.4850891 | D38: 99.24264348 | E38: 12.63269588 | F38: 0.4447115874 | G38: 0.6741292969 | H38: 0.2671528861
B39: 210 | C39: 167.0753436 | D39: 101.6543162 | E39: 12.90667672 | F39: 0.4598576852 | G39: 0.6942891282 | H39: 0.2682375738
B40: 220 | C40: 168.6236748 | D40: 103.953571 | E40: 13.17775271 | F40: 0.4753047014 | G40: 0.7141467246 | H40: 0.2691516961
B41: 230 | C41: 170.116239 | D41: 106.1495728 | E41: 13.44680137 | F41: 0.4910405506 | G41: 0.7337221022 | H41: 0.2699143606
B42: 240 | C42: 171.5384051 | D42: 108.2508513 | E42: 13.7144757 | F42: 0.5070514981 | G42: 0.7530306495 | H42: 0.2705458487
B43: 250 | C43: 172.8752075 | D43: 110.2653608 | E43: 13.98124475 | F43: 0.5233224727 | G43: 0.7720834526 | H43: 0.2710673648
B44: 260 | C44: 174.1116946 | D44: 112.2005317 | E44: 14.24742608 | F44: 0.539837305 | G44: 0.7908876177 | H44: 0.2715007874
B45: 270 | C45: 175.2332025 | D45: 114.0633151 | E45: 14.51321188 | F45: 0.5565789121 | G45: 0.8094465833 | H45: 0.2718684362
B46: 280 | C46: 176.2255745 | D46: 115.8602225 | E46: 14.77869006 | F46: 0.5735294445 | G46: 0.8277604195 | H46: 0.2721928673
B47: 290 | C47: 177.0753401 | D47: 117.5973608 | E47: 15.04386145 | F47: 0.5906704063 | G47: 0.845826114 | H47: 0.2724967011
B48: 300 | C48: 177.769864 | D48: 119.2804638 | E48: 15.30865382 | F48: 0.6079827547 | G48: 0.8636378417 | H48: 0.2728024843

Sheet coef exp.
C2: NIST values
C3: Alu 3003 | D3: Alu 5083 | E3: 304 L | F3: G 10 normal | G3: G 10 warp
B4: a | C4: -412.77 | D4: -412.77 | E4: -295.54 | F4: -719.8 | G4: -246.9
B5: b | C5: -0.30389 | D5: -0.30389 | E5: -0.39811 | F5: 0.4455 | G5: 0.2064
B6: c | C6: 0.0087696 | D6: 0.0087696 | E6: 0.0092683 | F6: 0.007505 | G6: 0.003072
B7: d | C7: -9.9821e-06 | D7: -9.9821e-06 | E7: -2.0261e-05 | F7: -2.219e-06 | G7: =-3.226*10^(-6) -> -3.226e-06
B8: e | C8: 0 | D8: 0 | E8: 1.7127e-08 | F8: 0 | G8: 0
B9: f | C9: -4.1545 | D9: -4.1545 | E9: -3.0004 | F9: NA | G9: NA
B10: Tlow | C10: 18 | D10: 18 | E10: 23 | F10: NA | G10: NA
B11: % error relative to data | C11: 0.04 | D11: 0.04 | E11: 0.05 | F11: 0.015 | G11: 0.02
B12: Validity | C12: 4-300K | D12: 4-300K | E12: 4-300K | F12: 10-300K | G12: 12-300K
C14: Linear expansion (L-L293)/L293
B15: Temperature [K] | C15: Alu 3003 | D15: Alu 5083 | E15: 304 L | F15: G 10 normal | G15: G 10 warp
B16: 4 | C16: =linexp("alu3003",$B16) -> -4.1545 | D16: =linexp("alu5083",$B16) -> -4.1545 | E16: =linexp("304L",$B16) -> -3.0004 | F16: =linexp("Epox_norm",$B16) -> -7.17898062 | G16: =linexp("Epox_trans",$B16) -> -2.460254545
B17: 10 | C17: =linexp("alu3003",$B17) -> -4.1545 | D17: =linexp("alu5083",$B17) -> -4.1545 | E17: =linexp("304L",$B17) -> -3.0004 | F17: =linexp("Epox_norm",$B17) -> -7.14596719 | G17: =linexp("Epox_trans",$B17) -> -2.44532026
B18: 20 | C18: -4.154198168 | D18: -4.154198168 | E18: -3.0004 | F18: -7.07905752 | G18: -2.41569008
B19: =B18+10 -> 30 | C19: -4.142635767 | D19: -4.142635767 | E19: -2.996750041 | F19: -6.99740413 | G19: -2.38030302
B20: 40 | C20: -4.115330944 | D20: -4.115330944 | E20: -2.978879789 | F20: -6.90114016 | G20: -2.33935264
B21: 50 | C21: -4.072882625 | D21: -4.072882625 | E21: -2.947003313 | F21: -6.79039875 | G21: -2.2930325
B22: 60 | C22: -4.015889736 | D22: -4.015889736 | E22: -2.902151301 | F22: -6.66531304 | G22: -2.24153616
B23: 70 | C23: -3.944951203 | D23: -3.944951203 | E23: -2.845313337 | F23: -6.52601617 | G23: -2.18505718
B24: 80 | C24: -3.860665952 | D24: -3.860665952 | E24: -2.777437901 | F24: -6.37264128 | G24: -2.12378912
B25: 90 | C25: -3.763632909 | D25: -3.763632909 | E25: -2.699432365 | F25: -6.20532151 | G25: -2.05792554
B26: 100 | C26: -3.654451 | D26: -3.654451 | E26: -2.612163 | F26: -6.02419 | G26: -1.98766
B27: 110 | C27: -3.533719151 | D27: -3.533719151 | E27: -2.516454969 | F27: -5.82937989 | G27: -1.91318606
B28: 120 | C28: -3.402036288 | D28: -3.402036288 | E28: -2.413092333 | F28: -5.62102432 | G28: -1.83469728
B29: 130 | C29: -3.260001337 | D29: -3.260001337 | E29: -2.302818045 | F29: -5.39925643 | G29: -1.75238722
B30: 140 | C30: -3.108213224 | D30: -3.108213224 | E30: -2.186333957 | F30: -5.16420936 | G30: -1.66644944
B31: 150 | C31: -2.947270875 | D31: -2.947270875 | E31: -2.064300812 | F31: -4.91601625 | G31: -1.5770775
B32: 160 | C32: -2.777773216 | D32: -2.777773216 | E32: -1.937338253 | F32: -4.65481024 | G32: -1.48446496
B33: 170 | C33: -2.600319173 | D33: -2.600319173 | E33: -1.806024813 | F33: -4.38072447 | G33: -1.38880538
B34: 180 | C34: -2.415507672 | D34: -2.415507672 | E34: -1.670897925 | F34: -4.09389208 | G34: -1.29029232
B35: 190 | C35: -2.223937639 | D35: -2.223937639 | E35: -1.532453913 | F35: -3.79444621 | G35: -1.18911934
B36: 200 | C36: -2.026208 | D36: -2.026208 | E36: -1.391148 | F36: -3.48252 | G36: -1.08548
B37: 210 | C37: -1.822917681 | D37: -1.822917681 | E37: -1.247394301 | F37: -3.15824659 | G37: -0.97956786
B38: 220 | C38: -1.614665608 | D38: -1.614665608 | E38: -1.101565829 | F38: -2.82175912 | G38: -0.87157648
B39: 230 | C39: -1.402050707 | D39: -1.402050707 | E39: -0.9539944893 | F39: -2.47319073 | G39: -0.76169942
B40: 240 | C40: -1.185671904 | D40: -1.185671904 | E40: -0.8049710848 | F40: -2.11267456 | G40: -0.65013024
B41: 250 | C41: -0.966128125 | D41: -0.966128125 | E41: -0.6547453125 | F41: -1.74034375 | G41: -0.5370625
B42: 260 | C42: -0.744018296 | D42: -0.744018296 | E42: -0.5035257648 | F42: -1.35633144 | G42: -0.42268976
B43: 270 | C43: -0.519941343 | D43: -0.519941343 | E43: -0.3514799293 | F43: -0.96077077 | G43: -0.30720558
B44: 280 | C44: -0.294496192 | D44: -0.294496192 | E44: -0.1987341888 | F44: -0.55379488 | G44: -0.19080352
B45: 290 | C45: -0.068281769 | D45: -0.068281769 | E45: -0.0453738213 | F45: -0.13553691 | G45: -0.07367714
B46: 300 | C46: 0.158103 | D46: 0.158103 | E46: 0.108557 | F46: 0.29387 | G46: 0.04398

Sheet Cp
C3: NIST | G3: Water Desorption Heat on charcoal | J3: 2500
C4: SS 304L | D4: Alu | G4: Water Desorption Heat on 13X | J4: 4200
B5: a | C5: 22.0061 | D5: 46.6467 | G5: Water adsorption on 13X @Tamb. | J5: 35 | K5: Attention valeur CRCD non communicable
B6: b | C6: -127.5528 | D6: -314.292 | G6: Water adsorption on 13X after drying (125°C, 1 mbar) | J6: 7 | K6: Attention valeur CRCD non communicable
B7: c | C7: 303.647 | D7: 866.662
B8: d | C8: -381.0098 | D8: -1298.3
B9: e | C9: 274.0328 | D9: 1162.27
B10: f | C10: -112.9212 | D10: -637.795 | G10: Données CRCD | H10: NON COMMUNICABLES
B11: g | C11: 24.7593 | D11: 210.351 | G11: Données NIST
B12: h | C12: -2.239153 | D12: -38.3094 | G12: Données VDI Heat Atlas
B13: i | C13: 0 | D13: 2.96344
B14: % error relative to data | C14: 0.05 | D14: 0.05
B15: Validity | C15: 4-300K | D15: 4-300K
C17: Specific heat [J/kg/K] | H17: Integral (Cp) 0 -> T [J/kg]
B18: Temperature [K] | C18: =C4 -> SS 304L | D18: =D4 -> Alu | E18: 13X | F18: Activ. Charcoal | G18: Temperature [K] | H18: SS 304 | I18: Alu 3003
B19: 4.2 | C19: =cp("304L",$B19) -> 2.06465418 | D19: =cp("alu",$B19) -> 0.307090044 | G19: 4.2 | H19: =C19/2 -> 1.03232709 | I19: =D19/2 -> 0.153545022 | K19: Diamètre nominal | L19: Фext (mm) | M19: Epaisseur (mm) | N19: Фint (mm)
B20: 10 | C20: =cp("304L",$B20) -> 5.275298026 | D20: =cp("alu",$B20) -> 1.573040847 | G20: 10 | H20: =Int_cp("304L",$G20,$G$19) -> 20.65691228 | I20: =Int_cp("alu",$G20,$G$19) -> 5.053117016 | K20: 8 | L20: 13.7 | M20: 1.6 | N20: =L20-2*M20 -> 10.5
B21: 20 | C21: =cp("304L",$B21) -> 13.45247806 | D21: =cp("alu",$B21) -> 8.854270289 | F21: 335 | G21: 20 | H21: =Int_cp("304L",$G21,$G$19) -> 109.2123183 | I21: =Int_cp("alu",$G21,$G$19) -> 48.20839683 | K21: 10 | L21: 17.1 | M21: 1.6 | N21: =L21-2*M21 -> 13.9
B22: 30 | C22: =cp("304L",$B22) -> 30.53936071 | D22: =cp("alu",$B22) -> 33.44547565 | G22: 30 | H22: =Int_cp("304L",$G22,$G$19) -> 320.2019643 | I22: =Int_cp("alu",$G22,$G$19) -> 240.8137158 | K22: 15 | L22: 21.3 | M22: 1.6 | N22: =L22-2*M22 -> 18.1
B23: 40 | C23: =cp("304L",$B23) -> 58.68698906 | D23: =cp("alu",$B23) -> 81.95717957 | G23: 40 | H23: =Int_cp("304L",$G23,$G$19) -> 757.5533399 | I23: =Int_cp("alu",$G23,$G$19) -> 798.8468209 | K23: 20 | L23: 26.9 | M23: 1.6 | N23: =L23-2*M23 -> 23.7
B24: 50 | C24: =cp("304L",$B24) -> 95.6896786 | D24: =cp("alu",$B24) -> 148.8382155 | G24: 50 | H24: =Int_cp("304L",$G24,$G$19) -> 1523.879814 | I24: =Int_cp("alu",$G24,$G$19) -> 1941.986742 | K24: 25 | L24: 33.7 | M24: 1.6 | N24: =L24-2*M24 -> 30.5
B25: 60 | C25: =cp("304L",$B25) -> 136.9150163 | D25: =cp("alu",$B25) -> 223.6378248 | G25: 60 | H25: =Int_cp("304L",$G25,$G$19) -> 2685.465324 | I25: =Int_cp("alu",$G25,$G$19) -> 3801.781572 | K25: 32 | L25: 42.4 | M25: 1.6 | N25: =L25-2*M25 -> 39.2
B26: 70 | C26: =cp("304L",$B26) -> 177.7981895 | D26: =cp("alu",$B26) -> 298.2954404 | G26: 70 | H26: =Int_cp("304L",$G26,$G$19) -> 4260.852273 | I26: =Int_cp("alu",$G26,$G$19) -> 6413.804544 | K26: 40 | L26: 48.3 | M26: 1.6 | N26: =L26-2*M26 -> 45.1
B27: 80 | C27: =cp("304L",$B27) -> 215.2590828 | D27: =cp("alu",$B27) -> 368.6691736 | E27: 586 | G27: 80 | H27: =Int_cp("304L",$G27,$G$19) -> 6229.773232 | I27: =Int_cp("alu",$G27,$G$19) -> 9753.042192 | K27: 50 | L27: 60.3 | M27: 1.6 | N27: =L27-2*M27 -> 57.1
B28: 90 | C28: =cp("304L",$B28) -> 247.8849491 | D28: =cp("alu",$B28) -> 433.333574 | G28: 90 | H28: =Int_cp("304L",$G28,$G$19) -> 8549.70036 | I28: =Int_cp("alu",$G28,$G$19) -> 13767.92312 | K28: 65 | L28: 76.1 | M28: 1.6 | N28: =L28-2*M28 -> 72.9
B29: 100 | C29: =cp("304L",$B29) -> 275.4964456 | D29: =cp("alu",$B29) -> 492.1981761 | G29: 100 | H29: =Int_cp("304L",$G29,$G$19) -> 11170.59949 | I29: =Int_cp("alu",$G29,$G$19) -> 18400.23841 | K29: 80 | L29: 88.9 | M29: 2 | N29: =L29-2*M29 -> 84.9
B30: 110 | C30: =cp("304L",$B30) -> 298.6126998 | D30: =cp("alu",$B30) -> 545.6466744 | G30: 110 | H30: =Int_cp("304L",$G30,$G$19) -> 14044.54116 | I30: =Int_cp("alu",$G30,$G$19) -> 23593.73883 | K30: 100 | L30: 114.3 | M30: 2 | N30: =L30-2*M30 -> 110.3
B31: 120 | C31: =cp("304L",$B31) -> 318.0398073 | D31: =cp("alu",$B31) -> 594.1292376 | G31: 120 | H31: =Int_cp("304L",$G31,$G$19) -> 17130.49286 | I31: =Int_cp("alu",$G31,$G$19) -> 29296.54627
B32: 130 | C32: =cp("304L",$B32) -> 334.6192988 | D32: =cp("alu",$B32) -> 638.0174392 | G32: 130 | H32: =Int_cp("304L",$G32,$G$19) -> 20395.80912 | I32: =Int_cp("alu",$G32,$G$19) -> 35460.94398
B33: 140 | C33: =cp("304L",$B33) -> 349.1008878 | D33: =cp("alu",$B33) -> 677.5840155 | G33: 140 | H33: =Int_cp("304L",$G33,$G$19) -> 23815.86709 | I33: =Int_cp("alu",$G33,$G$19) -> 42042.42552
B34: 150 | C34: =cp("304L",$B34) -> 362.0930975 | D34: =cp("alu",$B34) -> 713.0313602 | G34: 150 | H34: =Int_cp("304L",$G34,$G$19) -> 27372.85416 | I34: =Int_cp("alu",$G34,$G$19) -> 48998.82813
B35: 160 | C35: =cp("304L",$B35) -> 374.0558908 | D35: =cp("alu",$B35) -> 744.5319609 | G35: 160 | H35: =Int_cp("304L",$G35,$G$19) -> 31054.29568 | I35: =Int_cp("alu",$G35,$G$19) -> 56289.83033
B36: 170 | C36: =cp("304L",$B36) -> 385.3126507 | D36: =cp("alu",$B36) -> 772.264879 | G36: 170 | H36: =Int_cp("304L",$G36,$G$19) -> 34851.61977 | I36: =Int_cp("alu",$G36,$G$19) -> 63876.84187
B37: 180 | C37: =cp("304L",$B37) -> 396.0689666 | D37: =cp("alu",$B37) -> 796.4426225 | G37: 180 | H37: =Int_cp("304L",$G37,$G$19) -> 38758.88302 | I37: =Int_cp("alu",$G37,$G$19) -> 71723.21256
B38: 190 | C38: =cp("304L",$B38) -> 406.4320862 | D38: =cp("alu",$B38) -> 817.3275437 | G38: 190 | H38: =Int_cp("304L",$G38,$G$19) -> 42771.69074 | I38: =Int_cp("alu",$G38,$G$19) -> 79794.6571
B39: 200 | C39: =cp("304L",$B39) -> 416.4285148 | D39: =cp("alu",$B39) -> 835.2390197 | G39: 200 | H39: =Int_cp("304L",$G39,$G$19) -> 46886.3035 | I39: =Int_cp("alu",$G39,$G$19) -> 88059.79618
B40: 210 | C40: =cp("304L",$B40) -> 426.0191153 | D40: =cp("alu",$B40) -> 850.5535112 | G40: 210 | H40: =Int_cp("304L",$G40,$G$19) -> 51098.90727 | I40: =Int_cp("alu",$G40,$G$19) -> 96490.73196
B41: 220 | C41: =cp("304L",$B41) -> 435.1119173 | D41: =cp("alu",$B41) -> 863.6997828 | G41: 220 | H41: =Int_cp("304L",$G41,$G$19) -> 55405.02271 | I41: =Int_cp("alu",$G41,$G$19) -> 105063.5981
B42: 230 | C42: =cp("304L",$B42) -> 443.5731643 | D42: =cp("alu",$B42) -> 875.1514388 | G42: 230 | H42: =Int_cp("304L",$G42,$G$19) -> 59799.03335 | I42: =Int_cp("alu",$G42,$G$19) -> 113759.0468
B43: 240 | C43: =cp("304L",$B43) -> 451.2371772 | D43: =cp("alu",$B43) -> 885.4186296 | G43: 240 | H43: =Int_cp("304L",$G43,$G$19) -> 64273.8177 | I43: =Int_cp("alu",$G43,$G$19) -> 122562.6559
B44: 250 | C44: =cp("304L",$B44) -> 457.9155345 | D44: =cp("alu",$B44) -> 895.0404244 | G44: 250 | H44: =Int_cp("304L",$G44,$G$19) -> 68820.4764 | I44: =Int_cp("alu",$G44,$G$19) -> 131465.255
B45: 260 | C45: =cp("304L",$B45) -> 463.405944 | D45: =cp("alu",$B45) -> 904.5789839 | G45: 260 | H45: =Int_cp("304L",$G45,$G$19) -> 73428.14926 | I45: =Int_cp("alu",$G45,$G$19) -> 140463.1836
B46: 270 | C46: =cp("304L",$B46) -> 467.5010325 | D46: =cp("alu",$B46) -> 914.6163476 | G46: 270 | H46: =Int_cp("304L",$G46,$G$19) -> 78083.92048 | I46: =Int_cp("alu",$G46,$G$19) -> 149558.5037
B47: 280 | C47: =cp("304L",$B47) -> 469.9971456 | D47: =cp("alu",$B47) -> 925.7543969 | G47: 280 | H47: =Int_cp("304L",$G47,$G$19) -> 82772.8119 | I47: =Int_cp("alu",$G47,$G$19) -> 158759.1955
B48: 290 | C48: =cp("304L",$B48) -> 470.7031148 | D48: =cp("alu",$B48) -> 938.6183867 | G48: 290 | H48: =Int_cp("304L",$G48,$G$19) -> 87477.86404 | I48: =Int_cp("alu",$G48,$G$19) -> 168079.3705
A49: Données VDI Heat atlas | B49: 300 | C49: 474 | D49: =cp("alu",$B49) -> 953.8643601 | E49: 1022 | G49: 300 | H49: =Int_cp("304L",$G49,$G$19) -> 92180.30412 | I49: =Int_cp("alu",$G49,$G$19) -> 177539.5385
B50: 310 | C50: 478 | E50: 1038 | G50: 310 | H50: =H49+($G50-$G49)*(C49+C50)/2 -> 96940.30412
B51: 320 | C51: 482 | E51: 1052 | G51: 320 | H51: =H50+($G51-$G50)*(C50+C51)/2 -> 101740.3041
B52: 330 | C52: 486 | E52: 1066 | G52: 330 | H52: =H51+($G52-$G51)*(C51+C52)/2 -> 106580.3041
B53: 340 | C53: 490 | E53: 1078 | G53: 340 | H53: =H52+($G53-$G52)*(C52+C53)/2 -> 111460.3041
B54: 350 | C54: 493 | E54: 1088 | G54: 350 | H54: =H53+($G54-$G53)*(C53+C54)/2 -> 116375.3041
B55: 360 | C55: 497 | E55: 1097 | G55: 360 | H55: =H54+($G55-$G54)*(C54+C55)/2 -> 121325.3041
B56: 370 | C56: 500 | E56: 1105 | G56: 370 | H56: =H55+($G56-$G55)*(C55+C56)/2 -> 126310.3041
B57: 380 | C57: 503 | E57: 1112 | G57: 380 | H57: =H56+($G57-$G56)*(C56+C57)/2 -> 131325.3041
B58: 390 | C58: 505 | E58: 1117 | G58: 390 | H58: =H57+($G58-$G57)*(C57+C58)/2 -> 136365.3041
B59: 400 | C59: 508 | E59: 1120 | G59: 400 | H59: =H58+($G59-$G58)*(C58+C59)/2 -> 141430.3041

Sheet Pipe conduction
B2: Norm | C2: EN | K2: Outlet Diameter [mm] | M2: Thickness [mm]
B3: Piping Class | C3: HP | E3: Material | F3: Norm | G3: Piping class | I3: Nominal Diameter | K3: EN | L3: ASME | M3: 27 bar EN | N3: 10 bar EN | O3: 10 bar ASME | P3: 27 bar ASME
B4: DN | C4: 150 | E4: 304L | F4: EN | G4: HP | I4: 8 | K4: =Dext($F$4,I4) -> 13.5 | L4: =Dext($F$5,I4) -> 13.7 | M4: =Thck($F$4,$G$4,$I4) -> 1.6 | N4: =Thck($F$4,$G$5,$I4) -> 1.6 | O4: =Thck($F$5,$G$5,$I4) -> 1.65 | P4: =Thck($F$5,$G$4,$I4) -> 1.65
B5: Outlet diameter | C5: =Dext(C2,C4) -> 168.3 | E5: Alu3003 | F5: ASME | G5: LP | I5: 10 | K5: 17.2 | L5: 17.1 | M5: =Thck($F$4,$G$4,I5) -> 1.6 | N5: 1.6 | O5: 1.65 | P5: 1.65
B6: Thickness | C6: =Thck(C2,C3,C4) -> 2.3 | E6: Alu5083 | I6: 15 | K6: 21.3 | L6: 21.3 | M6: 1.6 | N6: 1.6 | O6: 1.65 | P6: 1.65
B7: Inlet diameter | C7: =Dint(C2,C3,C4) -> 163.7 | E7: Epox_norm | I7: 20 | K7: 26.9 | L7: 26.7 | M7: 1.6 | N7: 1.6 | O7: 1.65 | P7: 1.65
B8: Inlet section | C8: =PI()*C7^2/4 -> 21046.85651 | E8: Epox_trans | I8: 25 | K8: 33.7 | L8: 33.4 | M8: 1.6 | N8: 1.6 | O8: 1.65 | P8: 1.65
B9: Pipe section | C9: =PI()*(C5^2-C7^2)/4 -> 1199.460075 | E9: PTFE | I9: 32 | K9: 42.4 | L9: 42.2 | M9: 1.6 | N9: 1.6 | O9: 1.65 | P9: 1.65
I10: 40 | K10: 48.3 | L10: 48.3 | M10: 1.6 | N10: 1.6 | O10: 1.65 | P10: 1.65
I11: 50 | K11: 60.3 | L11: 60.3 | M11: 1.6 | N11: 1.6 | O11: 1.65 | P11: 2.77
B12: Min temperature | C12: 4 | I12: 65 | K12: 76.1 | L12: 73 | M12: 1.6 | N12: 1.6 | O12: 1.65 | P12: 3.05
B13: Max Temperature | C13: 300 | I13: 80 | K13: 88.9 | L13: 88.9 | M13: 2 | N13: 2 | O13: 2.11 | P13: 3.05
B14: Length | C14: 300 | I14: 100 | K14: 114.3 | L14: 114.3 | M14: 2 | N14: 2 | O14: 2.11 | P14: 3.05
B15: Material | C15: 304L | I15: 125 | K15: 139.7 | L15: 141.3 | M15: 2 | N15: 2 | O15: 2.77 | P15: 3.4
I16: 150 | K16: 168.3 | L16: 168.3 | M16: 2.3 | N16: 2 | O16: 2.77 | P16: 3.4
B17: Heat inleaks | I17: 200 | K17: 219.1 | L17: 219.1 | M17: 2.9 | N17: 2.6 | O17: 3.76 | P17: 3.76
B18: With average conductivity | C18: =lambda($C$15,($C$12+$C$13)/2)/$C$14*$C$9*($C$13-$C$12)/10^3 -> 13.28933213 | I18: 250 | K18: 273 | L18: 273 | M18: 3.6 | N18: 2.9 | O18: 4.19 | P18: 9.27
B19: With conductivity integral | C19: =Int_lambda(C15,C12,C13)/$C$14*$C$9/10^3 -> 12.11789806 | D19: =(C19-C18)/$C$19 -> -0.09666974134 | I19: 300 | K19: 323.9 | L19: 323.9 | M19: 4.5 | N19: 3.6 | O19: 4.57 | P19: 9.53
B20: By discretisation | C20: 12.1226962 | I20: 350 | K20: 355.6 | L20: 355.6 | M20: 5 | N20: 4 | O20: 4.77 | P20: 9.53
I21: 400 | K21: 406.4 | L21: 406.4 | M21: 5.6 | N21: 4.5 | O21: 4.77 | P21: 9.53
I22: 450 | K22: 457.2 | L22: 457.2 | N22: 5 | O22: 4.77 | P22: 9.53
C23: Length [mm] | D23: Temperature to converge | E23: Conductivity [W/(m.K)] | F23: Solved Temperature | G23: Gap | I23: 500 | K23: 508 | L23: 508 | N23: 5.6 | O23: 5.54
C24: 0 | D24: =C12 -> 4 | E24: =lambda($C$15,D24) -> 0.272396189 | F24: =D24 -> 4 | G24: =(D24-F24)/D24 -> 0 | I24: 600 | K24: 610 | L24: 609.6 | N24: 6.3 | O24: 9.53
C25: =C24+$C$14/30 -> 10 | D25: 42.61610349 | E25: 4.961792564 | F25: =F24+$C$20*$C$25/((E25+E24)/2*$C$9)*10^3 -> 42.61837902 | G25: -5.339602248e-05 | I25: 700 | K25: 711 | L25: 711.2 | N25: 8 | O25: 9.53
C26: =C25+$C$14/30 -> 20 | D26: 60.02592034 | E26: 6.64884199 | F26: 60.02792577 | G26: -3.34094307e-05
C27: 30 | D27: 74.08249583 | E27: 7.724152391 | F27: 74.09151473 | G27: -0.0001217412906
C28: 40 | D28: 86.53411182 | E28: 8.509124462 | F28: 86.54346063 | G28: -0.0001080361028
C29: 50 | D29: 97.99976407 | E29: 9.124834671 | F29: 98.00633653 | G29: -6.706602587e-05
C30: 60 | D30: 108.7733382 | E30: 9.6311381 | F30: 108.783484 | G30: -9.327517386e-05
C31: 70 | D31: 119.0457181 | E31: 10.06324095 | F31: 119.0471174 | G31: -1.175424984e-05
C32: 80 | D32: 128.890718 | E32: 10.4410886 | F32: 128.9053224 | G32: -0.0001133080487
C33: 90 | D33: 138.4577854 | E33: 10.78154779 | F33: 138.4298641 | G33: 0.0002016596951
C34: 100 | D34: 147.6471382 | E34: 11.08900487 | F34: 147.6722407 | G34: -0.0001700172461
C35: 110 | D35: 156.6507469 | E35: 11.37555524 | F35: 156.6702306 | G35: -0.0001243771707
C36: 120 | D36: 165.4716708 | E36: 11.64513631 | F36: 165.4508481 | G36: 0.0001258389456
C37: 130 | D37: 174.0741115 | E37: 11.89964 | F37: 174.0360171 | G37: 0.0002188402479
C38: 140 | D38: 182.4673048 | E38: 12.14165064 | F38: 182.4438804 | G38: 0.0001283757847
C39: 150 | D39: 190.6899668 | E39: 12.37400017 | F39: 190.6890576 | G39: 4.767800681e-06
C40: 160 | D40: 198.7761207 | E40: 12.59891173 | F40: 198.7832633 | G40: -3.593257165e-05
C41: 170 | D41: 206.7408783 | E41: 12.81775194 | F41: 206.7361515 | G41: 2.286326803e-05
C42: 180 | D42: 214.5846643 | E42: 13.03125784 | F42: 214.5560211 | G42: 0.0001334820082
C43: 190 | D43: 222.302573 | E43: 13.23985577 | F43: 222.2502471 | G43: 0.0002353815229
C44: 200 | D44: 229.8912875 | E44: 13.44388487 | F44: 229.8254925 | G44: 0.0002862002937
C45: 210 | D45: 237.3519516 | E45: 13.64369868 | F45: 237.2878003 | G45: 0.0002702791842
C46: 220 | D46: 244.69013 | E46: 13.83968401 | F46: 244.6426404 | G46: 0.0001940805441
C47: 230 | D47: 251.9147072 | E47: 14.03224867 | F47: 251.89495 | G47: 7.842817615e-05
C48: 240 | D48: 259.0369944 | E48: 14.22181209 | F48: 259.0491742 | G48: -4.701961002e-05
C49: 250 | D49: 266.0702644 | E49: 14.40880454 | F49: 266.1093045 | G49: -0.0001467287146
C50: 260 | D50: 273.0293015 | E50: 14.59366411 | F50: 273.0789142 | G50: -0.0001817117298
C51: 270 | D51: 279.9295692 | E51: 14.7768213 | F51: 279.9611935 | G51: -0.0001129724203
C52: 280 | D52: 286.7859372 | E52: 14.95867022 | F52: 286.7589922 | G52: 9.395516319e-05
C53: 290 | D53: 293.6112079 | E53: 15.13953299 | F53: 293.474871 | G53: 0.0004643450649
C54: 300 | D54: 300 | E54: 15.30865382 | F54: 300.1135548 | G54: -0.0003785161112
G55: =SUMSQ(G25:G54) -> 9.329627052e-07

Sheet Supports HX
B2: T5 = | C2: 20 | D2: =C2-273 -> -253 | F2: φ5 = | G2: =(C3-C2)*K19*I19/G19 -> 6.678055342 | H2: =G3-G2 -> 1.830046514e-08
B3: T4 = | C3: 86.15884469 | D3: =C3-273 -> -186.8411553 | F3: φ4 = | G3: =(C5-C3)*K20*I20/G20 -> 6.67805536 | M3: solid
B4: T3 = | C4: 80 | D4: -193 | F4: φ3 = | G4: =(C5-C4)*K21*I21/G21 -> 8.989718722 | H4: =G6-(G4+G2) -> 1.011141926e-08 | M4: square
B5: T2 = | C5: 146.5394822 | D5: -126.4605178 | F5: φ2 = | G5: =(C6-C5)*K22*I22/G22 -> 15.66777407 | M5: UPN
B6: T1 = | C6: 267.6627807 | D6: -5.3372193 | F6: φ1 = | G6: =(C7-C6)*K23*I23/G23 -> 15.66777407 | H6: =G6-G5 -> -2.113438313e-10
B7: T0 = | C7: 278 | D7: 5
C8: 0
C9: 0
B18: Part | C18: Material | D18: length | E18: width | F18: thickness | G18: L | H18: Shape | I18: S | J18: Material code | K18: Conduc. | L18: R. | M18: Average temperature of each element
B19: 5 | C19: Epoxy | D19: 320 | E19: 110 | F19: 85 | G19: =F19*10^-3 -> 0.085 | H19: solid | I19: =IF(H19="solid",D19*E19*10^(-6),IF(H19="square",2*(D19+E19)*F19*10^(-6),IF(H19="UPN",(2*E19+D19)*F19*10^(-6),1))) -> 0.0352 | J19: Epox_norm | K19: =lambda(J19,M19) -> 0.243746486 | L19: =G19/(I19*K19) -> 9.906902729 | M19: =(C2+C3)/2 -> 53.07942234
B20: 4 | C20: SS | D20: 300 | E20: 200 | F20: 12 | G20: 1.08 | H20: square | I20: =IF(H20="solid",D20*E20*10^(-6),IF(H20="square",2*(D20+E20)*F20*10^(-6),IF(H20="UPN",(2*E20+D20)*F20*10^(-6),1))) -> 0.012 | J20: 304L | K20: =lambda(J20,M20) -> 9.95393568 | L20: =G20/(I20*K20) -> 9.041649745 | M20: =(C3+C5)/2 -> 116.3491635
B21: 3 | C21: Epoxy | D21: 320 | E21: 110 | F21: 85 | G21: =F21*10^-3 -> 0.085 | H21: solid | I21: 0.0352 | J21: Epox_norm | K21: =lambda(J21,M21) -> 0.3262443119 | L21: =G21/(I21*K21) -> 7.401731276 | M21: =(C4+C5)/2 -> 113.2697411
B22: 2 | C22: SS | D22: 300 | E22: 200 | F22: 12 | G22: =2.27-1.08 -> 1.19 | H22: square | I22: 0.012 | J22: 304L | K22: =lambda(J22,M22) -> 12.82759757 | L22: =G22/(I22*K22) -> 7.730727919 | M22: =(C5+C6)/2 -> 207.1011315
B23: 1 | C23: Epoxy | D23: 300 | E23: 90 | F23: 10 | G23: =F23/10^3 -> 0.01 | H23: solid | I23: 0.027 | J23: Epox_norm | K23: =lambda(J23,M23) -> 0.5613578583 | L23: =G23/(I23*K23) -> 0.6597758719 | M23: =(C6+C7)/2 -> 272.8313904
